[Event "Early-Titled-Tuesday-Blitz-January-16-2024"]
[Site "Chess.com"]
[Date "2024.01.16"]
[Round "2"]
[White "artooon"]
[Black "albi1999"]
[Result "1-0"]
[WhiteElo "2965"]
[BlackElo "2613"]
[TimeControl "180+1"]
[EndTime "8:18:45 PST"]
[Termination "artooon won by resignation"]

1. e4 {[%clk 0:03:00.9]} 1... c5 {[%clk 0:02:53.3]} 2. Nf3 {[%clk 0:03:01]} 2...
a6 {[%clk 0:02:52.9]} 3. c4 {[%clk 0:03:00.8]} 3... Nc6 {[%clk 0:02:48.6]} 4. d4
{[%clk 0:03:00.8]} 4... cxd4 {[%clk 0:02:49.5]} 5. Nxd4 {[%clk 0:03:01.2]} 5...
Nf6 {[%clk 0:02:50]} 6. Nc3 {[%clk 0:03:01.6]} 6... e5 {[%clk 0:02:48.3]} 7. Nf5
{[%clk 0:02:54.7]} 7... d6 {[%clk 0:02:47.9]} 8. Ne3 {[%clk 0:02:54.7]} 8... g6
{[%clk 0:02:48]} 9. Bd3 {[%clk 0:02:54.9]} 9... Bh6 {[%clk 0:02:47.8]} 10. O-O
{[%clk 0:02:55.6]} 10... O-O {[%clk 0:02:47.8]} 11. b3 {[%clk 0:02:54.1]} 11...
Be6 {[%clk 0:02:47.3]} 12. Ned5 {[%clk 0:02:52.8]} 12... Bxc1 {[%clk 0:02:46.4]}
13. Qxc1 {[%clk 0:02:53.7]} 13... Bxd5 {[%clk 0:02:43.1]} 14. exd5 {[%clk
0:02:51.4]} 14... Nd4 {[%clk 0:02:42.4]} 15. Kh1 {[%clk 0:02:48.7]} 15... Nh5
{[%clk 0:02:34.5]} 16. g3 {[%clk 0:02:38.7]} 16... f5 {[%clk 0:02:29.4]} 17. f4
{[%clk 0:02:35.5]} 17... exf4 {[%clk 0:02:21.4]} 18. gxf4 {[%clk 0:02:21]} 18...
Qh4 {[%clk 0:02:20.4]} 19. Qe3 {[%clk 0:02:14.3]} 19... Qf6 {[%clk 0:01:37.1]}
20. Qd2 {[%clk 0:01:50.8]} 20... Rae8 {[%clk 0:01:31.5]} 21. Rae1 {[%clk
0:01:50.3]} 21... Qh4 {[%clk 0:01:25.5]} 22. Re3 {[%clk 0:01:48.6]} 22... Re7
{[%clk 0:00:43.1]} 23. Rxe7 {[%clk 0:01:26.2]} 23... Ng3+ {[%clk 0:00:26]} 24.
Kg2 {[%clk 0:01:26]} 24... Nxf1 {[%clk 0:00:25.9]} 25. Qe1 {[%clk 0:01:24.2]}
25... Qxh2+ {[%clk 0:00:17.7]} 26. Kxf1 {[%clk 0:01:23.8]} 26... Qh3+ {[%clk
0:00:10.9]} 27. Kf2 {[%clk 0:01:21.3]} 27... Qf3+ {[%clk 0:00:09.3]} 28. Kg1
{[%clk 0:01:21.2]} 28... Qxd3 {[%clk 0:00:10.2]} 29. Qe3 {[%clk 0:01:07.3]}
29... Qxe3+ {[%clk 0:00:09.9]} 30. Rxe3 {[%clk 0:01:08.2]} 30... Kf7 {[%clk
0:00:09.8]} 31. Rd3 {[%clk 0:01:02.7]} 31... Nc2 {[%clk 0:00:08.4]} 32. Kf2
{[%clk 0:00:59]} 32... Re8 {[%clk 0:00:08.3]} 33. Ne2 {[%clk 0:00:55.8]} 33...
Nb4 {[%clk 0:00:07.2]} 34. Rh3 {[%clk 0:00:54.9]} 34... h5 {[%clk 0:00:06.7]}
35. Nd4 {[%clk 0:00:54.4]} 35... Re4 {[%clk 0:00:07.1]} 36. Ne6 {[%clk
0:00:54.9]} 36... b5 {[%clk 0:00:05.6]} 37. Ng5+ {[%clk 0:00:55.3]} 37... Kf6
{[%clk 0:00:05.4]} 38. Nxe4+ {[%clk 0:00:56]} 38... fxe4 {[%clk 0:00:06.3]} 39.
Rg3 {[%clk 0:00:45.1]} 39... Kf5 {[%clk 0:00:04.5]} 40. Rg5+ {[%clk 0:00:39.9]}
40... Kxf4 {[%clk 0:00:04.6]} 41. Rxg6 {[%clk 0:00:40.6]} 41... bxc4 {[%clk
0:00:05.1]} 42. bxc4 {[%clk 0:00:40.5]} 42... Ke5 {[%clk 0:00:04.5]} 43. Ke3
{[%clk 0:00:39.6]} 43... Nc2+ {[%clk 0:00:04.4]} 44. Kd2 {[%clk 0:00:40.1]}
44... Nb4 {[%clk 0:00:05]} 45. a3 {[%clk 0:00:35.6]} 45... Nd3 {[%clk
0:00:03.5]} 46. Ke3 {[%clk 0:00:35.9]} 46... Nc5 {[%clk 0:00:03.5]} 47. Rg5+
{[%clk 0:00:35.6]} 47... Kf6 {[%clk 0:00:04]} 48. Rxh5 {[%clk 0:00:36.5]} 48...
a5 {[%clk 0:00:04.5]} 1-0

[Event "Early-Titled-Tuesday-Blitz-January-16-2024"]
[Site "Chess.com"]
[Date "2024.01.16"]
[Round "2"]
[White "Tejas_Rama"]
[Black "NovakCabarkapa"]
[Result "1-0"]
[WhiteElo "2569"]
[BlackElo "2794"]
[TimeControl "180+1"]
[EndTime "8:18:45 PST"]
[Termination "Tejas_Rama won by resignation"]

1. d4 {[%clk 0:03:00.9]} 1... Nf6 {[%clk 0:02:57.4]} 2. c4 {[%clk 0:02:55.4]}
2... g6 {[%clk 0:02:55.3]} 3. Nf3 {[%clk 0:02:39.8]} 3... Bg7 {[%clk 0:02:53.4]}
4. Nc3 {[%clk 0:02:40.2]} 4... d6 {[%clk 0:02:53.3]} 5. e4 {[%clk 0:02:36]} 5...
O-O {[%clk 0:02:53]} 6. Be2 {[%clk 0:02:22.8]} 6... Nc6 {[%clk 0:02:51]} 7. O-O
{[%clk 0:02:21.2]} 7... e5 {[%clk 0:02:50.1]} 8. Be3 {[%clk 0:02:19.3]} 8... Ng4
{[%clk 0:02:49]} 9. Bg5 {[%clk 0:02:19.2]} 9... f6 {[%clk 0:02:48.8]} 10. Bc1
{[%clk 0:02:19.9]} 10... Kh8 {[%clk 0:02:41.6]} 11. d5 {[%clk 0:02:18.9]} 11...
Ne7 {[%clk 0:02:41.8]} 12. h3 {[%clk 0:02:18.5]} 12... Nh6 {[%clk 0:02:42.1]}
13. b4 {[%clk 0:02:18.3]} 13... a5 {[%clk 0:02:41.2]} 14. bxa5 {[%clk
0:02:06.3]} 14... f5 {[%clk 0:02:40.5]} 15. Ng5 {[%clk 0:01:57.2]} 15... Rxa5
{[%clk 0:02:34.9]} 16. Bd2 {[%clk 0:01:49.7]} 16... Ra8 {[%clk 0:02:32.4]} 17.
exf5 {[%clk 0:01:41.1]} 17... Nhxf5 {[%clk 0:02:31.4]} 18. Nce4 {[%clk 0:01:29]}
18... Nd4 {[%clk 0:02:26.1]} 19. Bg4 {[%clk 0:01:24.2]} 19... Nef5 {[%clk
0:02:23.6]} 20. Be3 {[%clk 0:01:13.4]} 20... Bh6 {[%clk 0:02:02.1]} 21. Bxd4
{[%clk 0:00:59.2]} 21... Bxg5 {[%clk 0:01:45.9]} 22. Bc3 {[%clk 0:00:47.7]}
22... b6 {[%clk 0:01:29.5]} 23. Qd3 {[%clk 0:00:43.2]} 23... h5 {[%clk 0:01:25]}
24. Be2 {[%clk 0:00:35.4]} 24... Bh6 {[%clk 0:01:22.1]} 25. f4 {[%clk
0:00:34.8]} 25... Bg7 {[%clk 0:01:18.8]} 26. fxe5 {[%clk 0:00:33]} 26... dxe5
{[%clk 0:01:19.3]} 27. Rf2 {[%clk 0:00:24.6]} 27... Ra4 {[%clk 0:01:18.2]} 28.
Bb2 {[%clk 0:00:22.2]} 28... Ba6 {[%clk 0:01:17.1]} 29. Qb3 {[%clk 0:00:22.8]}
29... Ra5 {[%clk 0:01:15.4]} 30. Bc3 {[%clk 0:00:23.3]} 30... Nd4 {[%clk
0:01:12.4]} 31. Qb2 {[%clk 0:00:19.7]} 31... Rxf2 {[%clk 0:01:11.8]} 32. Nxf2
{[%clk 0:00:20.3]} 32... Ra4 {[%clk 0:00:50]} 33. Bxd4 {[%clk 0:00:19.5]} 33...
exd4 {[%clk 0:00:50.9]} 34. Qb3 {[%clk 0:00:19]} 34... Qe8 {[%clk 0:00:47.1]}
35. Re1 {[%clk 0:00:17.9]} 35... Bxc4 {[%clk 0:00:42.2]} 36. Qd1 {[%clk
0:00:17.8]} 36... Bxe2 {[%clk 0:00:40.1]} 37. Rxe2 {[%clk 0:00:18.7]} 37... Qa8
{[%clk 0:00:39.4]} 38. Qb1 {[%clk 0:00:17.4]} 38... Qxd5 {[%clk 0:00:19]} 39.
Qxg6 {[%clk 0:00:17.3]} 39... Ra8 {[%clk 0:00:19.6]} 40. Ne4 {[%clk 0:00:15.3]}
40... d3 {[%clk 0:00:18.8]} 41. Ng5 {[%clk 0:00:14.3]} 41... Qxg5 {[%clk
0:00:14.3]} 42. Qxg5 {[%clk 0:00:14.8]} 42... dxe2 {[%clk 0:00:14.3]} 43. Qxh5+
{[%clk 0:00:15.5]} 43... Kg8 {[%clk 0:00:14.8]} 44. Qd5+ {[%clk 0:00:14.3]}
44... Kh7 {[%clk 0:00:08.4]} 45. Qe4+ {[%clk 0:00:14.5]} 45... Kh8 {[%clk
0:00:08.3]} 46. Qxa8+ {[%clk 0:00:14.3]} 46... Bf8 {[%clk 0:00:05.9]} 47. Qxf8+
{[%clk 0:00:14.4]} 47... Kh7 {[%clk 0:00:06.2]} 48. Qe7+ {[%clk 0:00:15.3]} 1-0

[Event "Early-Titled-Tuesday-Blitz-January-16-2024"]
[Site "Chess.com"]
[Date "2024.01.16"]
[Round "2"]
[White "oneshot007"]
[Black "chenxiaoyuer"]
[Result "0-1"]
[WhiteElo "2389"]
[BlackElo "2735"]
[TimeControl "180+1"]
[EndTime "8:18:46 PST"]
[Termination "chenxiaoyuer won by resignation"]

1. Nf3 {[%clk 0:03:00.9]} 1... Nf6 {[%clk 0:02:59]} 2. g3 {[%clk 0:03:01.3]}
2... g6 {[%clk 0:02:59.4]} 3. Bg2 {[%clk 0:03:01.8]} 3... Bg7 {[%clk 0:03:00.1]}
4. c4 {[%clk 0:03:02.2]} 4... O-O {[%clk 0:03:00.9]} 5. O-O {[%clk 0:03:02.6]}
5... d6 {[%clk 0:03:01.5]} 6. d4 {[%clk 0:03:01.4]} 6... c6 {[%clk 0:02:59.6]}
7. Nc3 {[%clk 0:02:58.3]} 7... Bf5 {[%clk 0:03:00]} 8. b3 {[%clk 0:02:53]} 8...
Ne4 {[%clk 0:02:59.2]} 9. Nxe4 {[%clk 0:02:52.5]} 9... Bxe4 {[%clk 0:02:59.7]}
10. Bb2 {[%clk 0:02:52.3]} 10... Nd7 {[%clk 0:03:00.2]} 11. Qd2 {[%clk
0:02:45.5]} 11... a5 {[%clk 0:02:53.9]} 12. Bh3 {[%clk 0:02:37.2]} 12... Bxf3
{[%clk 0:02:44]} 13. exf3 {[%clk 0:02:36.7]} 13... e6 {[%clk 0:02:44.6]} 14. d5
{[%clk 0:02:27.3]} 14... exd5 {[%clk 0:02:35.4]} 15. Bxg7 {[%clk 0:02:22.7]}
15... Kxg7 {[%clk 0:02:35.4]} 16. Bxd7 {[%clk 0:02:21.1]} 16... Qxd7 {[%clk
0:02:35.2]} 17. cxd5 {[%clk 0:02:22]} 17... c5 {[%clk 0:02:35.8]} 18. Rfe1
{[%clk 0:02:21.1]} 18... a4 {[%clk 0:02:30]} 19. b4 {[%clk 0:02:14.3]} 19... b6
{[%clk 0:02:25.4]} 20. Re3 {[%clk 0:02:11.5]} 20... Qb5 {[%clk 0:02:10.6]} 21.
bxc5 {[%clk 0:02:01.5]} 21... bxc5 {[%clk 0:02:11.5]} 22. Re7 {[%clk 0:01:54.5]}
22... Qb4 {[%clk 0:02:07.6]} 23. Qg5 {[%clk 0:01:34.7]} 23... Qb2 {[%clk
0:01:57.9]} 24. Rae1 {[%clk 0:01:29.9]} 24... Qxa2 {[%clk 0:01:51.1]} 25. R1e6
{[%clk 0:00:56.6]} 25... Qb2 {[%clk 0:01:42.8]} 26. h4 {[%clk 0:00:44.8]} 26...
a3 {[%clk 0:01:39.3]} 27. h5 {[%clk 0:00:44.6]} 27... a2 {[%clk 0:01:39]} 28.
hxg6 {[%clk 0:00:16.2]} 28... a1=Q+ {[%clk 0:01:24.4]} 29. Kg2 {[%clk
0:00:16.1]} 29... Qxf2+ {[%clk 0:01:11.8]} 30. Kxf2 {[%clk 0:00:15.9]} 30...
Ra2+ {[%clk 0:01:11.9]} 31. Re2 {[%clk 0:00:15.2]} 31... Qd4+ {[%clk 0:01:11.3]}
32. Kg2 {[%clk 0:00:14.9]} 32... Rxe2+ {[%clk 0:01:11.8]} 33. Rxe2 {[%clk
0:00:14.7]} 33... hxg6 {[%clk 0:01:12.7]} 34. Rd2 {[%clk 0:00:12.6]} 34... Qf6
{[%clk 0:01:12.5]} 35. Qe3 {[%clk 0:00:10.7]} 35... Rh8 {[%clk 0:01:13]} 36. Re2
{[%clk 0:00:07.8]} 36... Qf5 {[%clk 0:01:12.6]} 37. g4 {[%clk 0:00:07.3]} 37...
Qf6 {[%clk 0:01:12.1]} 38. Qe7 {[%clk 0:00:07.1]} 38... Rb8 {[%clk 0:01:09.7]}
39. Re6 {[%clk 0:00:03.7]} 39... Qxe7 {[%clk 0:01:08.7]} 40. Rxe7 {[%clk
0:00:03.7]} 40... Kf6 {[%clk 0:01:08.6]} 41. Rd7 {[%clk 0:00:03.3]} 41... Rb6
{[%clk 0:01:08]} 42. f4 {[%clk 0:00:02.9]} 42... c4 {[%clk 0:01:06.8]} 43. Kf3
{[%clk 0:00:03.2]} 43... c3 {[%clk 0:01:06.7]} 44. Ke2 {[%clk 0:00:03.8]} 44...
Rb4 {[%clk 0:00:49.7]} 45. Rxd6+ {[%clk 0:00:02.9]} 45... Ke7 {[%clk 0:00:49.8]}
46. Rc6 {[%clk 0:00:03.6]} 46... Rxf4 {[%clk 0:00:50.2]} 47. Rxc3 {[%clk
0:00:03.5]} 47... Rxg4 {[%clk 0:00:50.7]} 48. Kf3 {[%clk 0:00:04]} 48... Rd4
{[%clk 0:00:50.5]} 49. Rc7+ {[%clk 0:00:04.4]} 49... Kf6 {[%clk 0:00:50.7]} 50.
Rd7 {[%clk 0:00:04.7]} 50... g5 {[%clk 0:00:49.7]} 51. Kg3 {[%clk 0:00:05.2]}
51... Kg6 {[%clk 0:00:50]} 52. Re7 {[%clk 0:00:05.3]} 52... f5 {[%clk 0:00:50]}
53. Re6+ {[%clk 0:00:04.3]} 53... Kf7 {[%clk 0:00:49.8]} 54. Rd6 {[%clk
0:00:03]} 54... Rd3+ {[%clk 0:00:49.4]} 55. Kf2 {[%clk 0:00:03.5]} 55... f4
{[%clk 0:00:49.9]} 56. Rh6 {[%clk 0:00:01.7]} 56... g4 {[%clk 0:00:49.2]} 57.
Kg2 {[%clk 0:00:01.9]} 57... Rd2+ {[%clk 0:00:49.1]} 58. Kf1 {[%clk 0:00:02.2]}
58... f3 {[%clk 0:00:48.7]} 59. Re6 {[%clk 0:00:02.6]} 59... g3 {[%clk
0:00:48.8]} 60. Re3 {[%clk 0:00:02.9]} 60... Rd1+ {[%clk 0:00:48.9]} 61. Re1
{[%clk 0:00:03.4]} 61... g2+ {[%clk 0:00:49.5]} 62. Kf2 {[%clk 0:00:03.6]} 62...
Rxe1 {[%clk 0:00:50.2]} 0-1

[Event "Early-Titled-Tuesday-Blitz-January-16-2024"]
[Site "Chess.com"]
[Date "2024.01.16"]
[Round "2"]
[White "tomesao"]
[Black "carloseduar100"]
[Result "1-0"]
[WhiteElo "2510"]
[BlackElo "2247"]
[TimeControl "180+1"]
[EndTime "8:18:46 PST"]
[Termination "tomesao won by checkmate"]

1. d4 {[%clk 0:03:00.9]} 1... d5 {[%clk 0:02:59.6]} 2. Nf3 {[%clk 0:03:00.8]}
2... c6 {[%clk 0:02:59.6]} 3. Bf4 {[%clk 0:03:00.8]} 3... e6 {[%clk 0:02:59.6]}
4. e3 {[%clk 0:02:59.2]} 4... Bd6 {[%clk 0:03:00]} 5. Nbd2 {[%clk 0:02:56.4]}
5... Bxf4 {[%clk 0:03:00.2]} 6. exf4 {[%clk 0:02:57.3]} 6... Qd6 {[%clk
0:03:00.4]} 7. g3 {[%clk 0:02:56.3]} 7... Nd7 {[%clk 0:03:00.7]} 8. c3 {[%clk
0:02:54.1]} 8... Nh6 {[%clk 0:03:01]} 9. Bd3 {[%clk 0:02:52.3]} 9... f5 {[%clk
0:02:56.8]} 10. Ne5 {[%clk 0:02:41.8]} 10... O-O {[%clk 0:02:56.8]} 11. O-O
{[%clk 0:02:37.2]} 11... Nf7 {[%clk 0:02:57]} 12. Nxf7 {[%clk 0:02:31.6]} 12...
Rxf7 {[%clk 0:02:56.2]} 13. Nf3 {[%clk 0:02:31.7]} 13... Rf6 {[%clk 0:02:56.5]}
14. Re1 {[%clk 0:02:31.3]} 14... Rh6 {[%clk 0:02:55.8]} 15. Kg2 {[%clk
0:02:29.3]} 15... Nf6 {[%clk 0:02:55.5]} 16. h4 {[%clk 0:02:28.2]} 16... Bd7
{[%clk 0:02:55.4]} 17. Ng5 {[%clk 0:02:23.1]} 17... Rf8 {[%clk 0:02:54.6]} 18.
Qe2 {[%clk 0:02:20]} 18... Ne4 {[%clk 0:02:53.5]} 19. f3 {[%clk 0:02:17.3]}
19... Nxg5 {[%clk 0:02:53.7]} 20. hxg5 {[%clk 0:02:18.1]} 20... Rg6 {[%clk
0:02:54]} 21. Rh1 {[%clk 0:02:13.8]} 21... h6 {[%clk 0:02:51.1]} 22. gxh6 {[%clk
0:02:13.5]} 22... Qxf4 {[%clk 0:02:51.2]} 23. h7+ {[%clk 0:02:07]} 23... Kh8
{[%clk 0:02:51.2]} 24. Rh3 {[%clk 0:02:02.1]} 24... Qg5 {[%clk 0:02:47.8]} 25.
Rah1 {[%clk 0:01:54.3]} 25... a6 {[%clk 0:02:46.9]} 26. Kf2 {[%clk 0:01:48.3]}
26... Rgf6 {[%clk 0:02:18.7]} 27. f4 {[%clk 0:01:45.8]} 27... Qg6 {[%clk
0:02:18.4]} 28. Qe5 {[%clk 0:01:43.3]} 28... Qf7 {[%clk 0:02:17.6]} 29. Qc7
{[%clk 0:01:40.3]} 29... Bc8 {[%clk 0:02:15.6]} 30. Qxf7 {[%clk 0:01:37.6]}
30... R6xf7 {[%clk 0:02:13.2]} 31. a4 {[%clk 0:01:37]} 31... a5 {[%clk
0:02:09.7]} 32. Rb1 {[%clk 0:01:35]} 32... b6 {[%clk 0:02:04.2]} 33. b4 {[%clk
0:01:32.7]} 33... axb4 {[%clk 0:02:04.2]} 34. Rxb4 {[%clk 0:01:32.3]} 34... Ra7
{[%clk 0:01:41]} 35. Rxb6 {[%clk 0:01:24.3]} 35... Rxa4 {[%clk 0:01:41.1]} 36.
Rxc6 {[%clk 0:01:23.3]} 36... Ra2+ {[%clk 0:01:41.4]} 37. Ke3 {[%clk 0:01:22.4]}
37... Bd7 {[%clk 0:01:24.9]} 38. Rc7 {[%clk 0:01:19.3]} 38... Bc8 {[%clk
0:01:24.7]} 39. Re7 {[%clk 0:01:11.7]} 39... Ra3 {[%clk 0:01:18.3]} 40. Rc7
{[%clk 0:01:05.3]} 40... Ra2 {[%clk 0:01:17.2]} 41. Rh5 {[%clk 0:01:02.4]} 41...
Ba6 {[%clk 0:00:33.7]} 42. Ra7 {[%clk 0:00:57.1]} 42... Bc4 {[%clk 0:00:32.3]}
43. Re7 {[%clk 0:00:41.9]} 43... Bxd3 {[%clk 0:00:31]} 44. Kxd3 {[%clk
0:00:42.8]} 44... Rg2 {[%clk 0:00:23.9]} 45. Rg5 {[%clk 0:00:42.6]} 45... Kxh7
{[%clk 0:00:24]} 46. Rexg7+ {[%clk 0:00:38.2]} 46... Kh6 {[%clk 0:00:24.1]} 47.
R7g6+ {[%clk 0:00:32.3]} 47... Kh7 {[%clk 0:00:20.4]} 48. Rxe6 {[%clk
0:00:31.8]} 48... Ra8 {[%clk 0:00:18.1]} 49. Re7+ {[%clk 0:00:30.2]} 49... Kh6
{[%clk 0:00:16.9]} 50. Re2 {[%clk 0:00:25.7]} 50... Rg1 {[%clk 0:00:12.1]} 51.
Rh2# {[%clk 0:00:25.1]} 1-0

[Event "Early-Titled-Tuesday-Blitz-January-16-2024"]
[Site "Chess.com"]
[Date "2024.01.16"]
[Round "2"]
[White "Arimin1329"]
[Black "The_Sherman_Variation"]
[Result "1-0"]
[WhiteElo "2413"]
[BlackElo "2695"]
[TimeControl "180+1"]
[EndTime "8:18:50 PST"]
[Termination "Arimin1329 won by resignation"]

1. Nf3 {[%clk 0:03:00.9]} 1... d5 {[%clk 0:02:58]} 2. g3 {[%clk 0:02:59.8]} 2...
e6 {[%clk 0:02:52.7]} 3. Bg2 {[%clk 0:02:59.5]} 3... Nf6 {[%clk 0:02:53.3]} 4.
O-O {[%clk 0:02:59.8]} 4... Be7 {[%clk 0:02:53.5]} 5. d4 {[%clk 0:02:58.2]} 5...
O-O {[%clk 0:02:53.6]} 6. b3 {[%clk 0:02:58.5]} 6... b5 {[%clk 0:02:53.1]} 7. c4
{[%clk 0:02:56.2]} 7... bxc4 {[%clk 0:02:49.1]} 8. bxc4 {[%clk 0:02:57.1]} 8...
dxc4 {[%clk 0:02:44.7]} 9. Ne5 {[%clk 0:02:56.9]} 9... Nd5 {[%clk 0:02:44.6]}
10. Nxc4 {[%clk 0:02:53.4]} 10... Ba6 {[%clk 0:02:43.9]} 11. Qa4 {[%clk
0:02:48.6]} 11... c6 {[%clk 0:02:34.7]} 12. Ba3 {[%clk 0:02:41.8]} 12... Bb5
{[%clk 0:02:28.7]} 13. Qc2 {[%clk 0:02:37.3]} 13... Nd7 {[%clk 0:02:18.3]} 14.
Rc1 {[%clk 0:02:33.6]} 14... Re8 {[%clk 0:02:13.4]} 15. Bxe7 {[%clk 0:02:20.2]}
15... Qxe7 {[%clk 0:02:09]} 16. a4 {[%clk 0:02:20.5]} 16... Ba6 {[%clk
0:02:01.3]} 17. Nbd2 {[%clk 0:02:06.8]} 17... Rec8 {[%clk 0:01:56.1]} 18. Ne4
{[%clk 0:02:05.9]} 18... Bxc4 {[%clk 0:01:44.3]} 19. Qxc4 {[%clk 0:02:04]} 19...
Rab8 {[%clk 0:01:44.5]} 20. Rab1 {[%clk 0:02:01.3]} 20... h6 {[%clk 0:01:40.4]}
21. Qa6 {[%clk 0:01:52.1]} 21... Rxb1 {[%clk 0:01:36.3]} 22. Qxc8+ {[%clk
0:01:49]} 22... Kh7 {[%clk 0:01:35]} 23. Rxb1 {[%clk 0:01:47.9]} 23... f5 {[%clk
0:01:29.2]} 24. Nc5 {[%clk 0:01:41.9]} 24... Nxc5 {[%clk 0:01:27.8]} 25. Bxd5
{[%clk 0:01:39.2]} 25... exd5 {[%clk 0:01:21.8]} 26. dxc5 {[%clk 0:01:34.6]}
26... Qe4 {[%clk 0:01:19.7]} 27. Re1 {[%clk 0:01:25.4]} 27... h5 {[%clk
0:01:17.8]} 28. Qd8 {[%clk 0:01:13.2]} 28... Qb4 {[%clk 0:01:12.8]} 29. Rc1
{[%clk 0:01:08.6]} 29... Qd2 {[%clk 0:01:10.2]} 30. Rf1 {[%clk 0:01:01]} 30...
Qxe2 {[%clk 0:01:10.6]} 31. Qd7 {[%clk 0:00:57.6]} 31... Qe4 {[%clk 0:01:06.7]}
32. h4 {[%clk 0:00:47.8]} 32... f4 {[%clk 0:01:05.3]} 33. Qd6 {[%clk 0:00:43.9]}
33... fxg3 {[%clk 0:00:59.2]} 34. Qxg3 {[%clk 0:00:44]} 34... Qxa4 {[%clk
0:00:57.9]} 35. Kh2 {[%clk 0:00:43.6]} 35... Qd4 {[%clk 0:00:52.5]} 36. Rg1
{[%clk 0:00:43.2]} 36... Qf6 {[%clk 0:00:49.9]} 37. Rg2 {[%clk 0:00:43]} 37...
a5 {[%clk 0:00:48.9]} 38. Qg5 {[%clk 0:00:43.1]} 38... Qf7 {[%clk 0:00:43.7]}
39. f4 {[%clk 0:00:42.3]} 39... a4 {[%clk 0:00:42.8]} 40. f5 {[%clk 0:00:42.5]}
40... Kh8 {[%clk 0:00:32.9]} 41. Qg6 {[%clk 0:00:39.1]} 41... Qc7+ {[%clk
0:00:31.8]} 42. Kh3 {[%clk 0:00:35.9]} 42... Qd7 {[%clk 0:00:28]} 43. Qxh5+
{[%clk 0:00:33.2]} 43... Kg8 {[%clk 0:00:28.1]} 44. Qg4 {[%clk 0:00:31.1]} 44...
Qf7 {[%clk 0:00:27.2]} 45. Qg6 {[%clk 0:00:27.8]} 45... Qb7 {[%clk 0:00:22.5]}
46. f6 {[%clk 0:00:22.2]} 46... Qd7+ {[%clk 0:00:22.4]} 47. Kh2 {[%clk
0:00:21.9]} 47... Qc7+ {[%clk 0:00:22.2]} 48. Kh1 {[%clk 0:00:22.1]} 48... a3
{[%clk 0:00:19.7]} 49. Qxg7+ {[%clk 0:00:21.3]} 49... Qxg7 {[%clk 0:00:20]} 50.
Rxg7+ {[%clk 0:00:21]} 50... Kf8 {[%clk 0:00:20.6]} 51. Ra7 {[%clk 0:00:21.9]}
51... a2 {[%clk 0:00:20.3]} 52. Rxa2 {[%clk 0:00:22.1]} 52... Kf7 {[%clk
0:00:21.2]} 53. Rf2 {[%clk 0:00:21.8]} 53... d4 {[%clk 0:00:21.2]} 54. h5 {[%clk
0:00:22.1]} 54... d3 {[%clk 0:00:22.1]} 55. h6 {[%clk 0:00:22.4]} 55... Kg6
{[%clk 0:00:22.1]} 56. f7 {[%clk 0:00:22.3]} 56... d2 {[%clk 0:00:22.2]} 57.
Rxd2 {[%clk 0:00:22]} 57... Kxf7 {[%clk 0:00:22.4]} 58. Rg2 {[%clk 0:00:21.9]}
1-0

[Event "Early-Titled-Tuesday-Blitz-January-16-2024"]
[Site "Chess.com"]
[Date "2024.01.16"]
[Round "2"]
[White "agvega14"]
[Black "Yurasova_Daria"]
[Result "0-1"]
[WhiteElo "2142"]
[BlackElo "2466"]
[TimeControl "180+1"]
[EndTime "8:18:50 PST"]
[Termination "Yurasova_Daria won on time"]

1. d4 {[%clk 0:02:54.7]} 1... d5 {[%clk 0:02:58.1]} 2. c4 {[%clk 0:02:54.2]}
2... dxc4 {[%clk 0:02:58.1]} 3. Nc3 {[%clk 0:02:54.9]} 3... Nf6 {[%clk
0:02:57.6]} 4. e3 {[%clk 0:02:54]} 4... e6 {[%clk 0:02:51.4]} 5. Bxc4 {[%clk
0:02:53.2]} 5... a6 {[%clk 0:02:52.1]} 6. a4 {[%clk 0:02:52]} 6... b6 {[%clk
0:02:49.9]} 7. Nf3 {[%clk 0:02:51.5]} 7... Bb7 {[%clk 0:02:49.1]} 8. O-O {[%clk
0:02:51.2]} 8... Nbd7 {[%clk 0:02:48.6]} 9. Qe2 {[%clk 0:02:50.7]} 9... c5
{[%clk 0:02:47.4]} 10. Rd1 {[%clk 0:02:50.4]} 10... Qc7 {[%clk 0:02:47.6]} 11.
Bb3 {[%clk 0:02:46.8]} 11... Be7 {[%clk 0:02:46.8]} 12. Bc2 {[%clk 0:02:39.3]}
12... O-O {[%clk 0:02:46.2]} 13. e4 {[%clk 0:02:10.4]} 13... cxd4 {[%clk
0:02:33.8]} 14. Nxd4 {[%clk 0:02:07.3]} 14... Rfd8 {[%clk 0:02:26.9]} 15. Bg5
{[%clk 0:01:51.1]} 15... h6 {[%clk 0:02:22.3]} 16. Bh4 {[%clk 0:01:49.6]} 16...
Rac8 {[%clk 0:01:57.4]} 17. Rac1 {[%clk 0:01:44.6]} 17... Qb8 {[%clk 0:01:53.2]}
18. Bb1 {[%clk 0:01:13.7]} 18... Qa8 {[%clk 0:01:50.9]} 19. f3 {[%clk
0:01:12.7]} 19... Nf8 {[%clk 0:01:21.4]} 20. Ba2 {[%clk 0:01:10.7]} 20... Bc5
{[%clk 0:01:16.8]} 21. Bf2 {[%clk 0:01:10.2]} 21... Kh8 {[%clk 0:01:10.4]} 22.
Nb3 {[%clk 0:00:56]} 22... Bxf2+ {[%clk 0:01:08.3]} 23. Qxf2 {[%clk 0:00:56.9]}
23... b5 {[%clk 0:01:05.1]} 24. a5 {[%clk 0:00:49.5]} 24... Ng6 {[%clk
0:00:59.9]} 25. Nc5 {[%clk 0:00:47]} 25... Bc6 {[%clk 0:00:59.5]} 26. b4 {[%clk
0:00:41.1]} 26... Ne5 {[%clk 0:00:54.7]} 27. Qg3 {[%clk 0:00:34.3]} 27... Ng6
{[%clk 0:00:50]} 28. Ne2 {[%clk 0:00:18.5]} 28... Rxd1+ {[%clk 0:00:49.7]} 29.
Rxd1 {[%clk 0:00:18.5]} 29... Rd8 {[%clk 0:00:50.5]} 30. Qe1 {[%clk 0:00:18.6]}
30... Rc8 {[%clk 0:00:37.5]} 31. Nd4 {[%clk 0:00:18.3]} 31... Bb7 {[%clk
0:00:35.1]} 32. Qe3 {[%clk 0:00:17.7]} 32... Ne5 {[%clk 0:00:33.9]} 33. Qf4
{[%clk 0:00:15.9]} 33... Nc6 {[%clk 0:00:29.2]} 34. Nxc6 {[%clk 0:00:14.6]}
34... Bxc6 {[%clk 0:00:30.1]} 35. Rd6 {[%clk 0:00:13.7]} 35... Qa7 {[%clk
0:00:21.8]} 36. Qd2 {[%clk 0:00:13.4]} 36... Kh7 {[%clk 0:00:18.8]} 37. Kf1
{[%clk 0:00:13.5]} 37... Ne8 {[%clk 0:00:15.2]} 38. Rd8 {[%clk 0:00:12.5]} 38...
Rxd8 {[%clk 0:00:15.6]} 39. Qxd8 {[%clk 0:00:13]} 39... Nf6 {[%clk 0:00:16.5]}
40. Bb3 {[%clk 0:00:12.3]} 40... Kg6 {[%clk 0:00:15.6]} 41. Qb6 {[%clk
0:00:10.5]} 41... Qa8 {[%clk 0:00:14]} 42. Nxa6 {[%clk 0:00:09.6]} 42... Nd7
{[%clk 0:00:11.4]} 0-1